[Event "Late-Titled-Tuesday-Blitz-September-19-2023"]
[Site "Chess.com"]
[Date "2023.09.19"]
[Round "5"]
[White "dropstoneDP"]
[Black "Arystanner"]
[Result "1-0"]
[WhiteElo "3037"]
[BlackElo "2799"]
[TimeControl "180+1"]
[EndTime "14:55:18 PDT"]
[Termination "dropstoneDP won by resignation"]

1. e4 {[%clk 0:03:00.9]} 1... c5 {[%clk 0:03:00.3]} 2. Nf3 {[%clk 0:03:00.7]}
2... Nc6 {[%clk 0:03:00.6]} 3. Bb5 {[%clk 0:03:00.2]} 3... g6 {[%clk 0:03:00.9]}
4. O-O {[%clk 0:02:57.4]} 4... Bg7 {[%clk 0:03:01.1]} 5. Re1 {[%clk 0:02:58.1]}
5... e5 {[%clk 0:03:01.4]} 6. Bxc6 {[%clk 0:02:58.7]} 6... dxc6 {[%clk
0:02:53.4]} 7. a4 {[%clk 0:02:58.3]} 7... Nf6 {[%clk 0:02:45.6]} 8. Nxe5 {[%clk
0:02:53.6]} 8... O-O {[%clk 0:02:45.4]} 9. d3 {[%clk 0:02:50.7]} 9... Re8 {[%clk
0:02:36.3]} 10. Nc4 {[%clk 0:02:46.5]} 10... Be6 {[%clk 0:02:30.8]} 11. Nbd2
{[%clk 0:02:39.1]} 11... b5 {[%clk 0:02:30.3]} 12. Ne3 {[%clk 0:02:37.4]} 12...
c4 {[%clk 0:02:27.8]} 13. axb5 {[%clk 0:02:24.3]} 13... cxd3 {[%clk 0:02:12.6]}
14. bxc6 {[%clk 0:02:20.6]} 14... Rc8 {[%clk 0:02:13.2]} 15. Nf3 {[%clk
0:02:10.9]} 15... Nxe4 {[%clk 0:02:06.3]} 16. cxd3 {[%clk 0:02:08.3]} 16... Nc5
{[%clk 0:02:06.1]} 17. d4 {[%clk 0:01:53.9]} 17... Nb3 {[%clk 0:02:06.3]} 18.
Rxa7 {[%clk 0:01:51]} 18... Nxd4 {[%clk 0:02:05.7]} 19. Nxd4 {[%clk 0:01:35.4]}
19... Bxd4 {[%clk 0:01:56.2]} 20. Ra3 {[%clk 0:01:30.4]} 20... Bxe3 {[%clk
0:01:39.9]} 21. Raxe3 {[%clk 0:01:15.6]} 21... Qxd1 {[%clk 0:01:35.6]} 22. Rxd1
{[%clk 0:01:16.5]} 22... Rxc6 {[%clk 0:01:36.2]} 23. Ree1 {[%clk 0:01:12.7]}
23... h5 {[%clk 0:01:32.9]} 24. Bd2 {[%clk 0:01:11.4]} 24... Rb8 {[%clk
0:01:25.5]} 25. Bc3 {[%clk 0:01:11.3]} 25... Rbc8 {[%clk 0:01:17.9]} 26. Re3
{[%clk 0:01:10]} 26... Kh7 {[%clk 0:01:18.6]} 27. h3 {[%clk 0:01:09.7]} 27...
R6c7 {[%clk 0:01:13]} 28. Kh2 {[%clk 0:01:08.9]} 28... Rc6 {[%clk 0:01:09.9]}
29. Rd4 {[%clk 0:01:04.9]} 29... R6c7 {[%clk 0:01:09.4]} 30. g4 {[%clk
0:01:04.9]} 30... Rc4 {[%clk 0:01:05.6]} 31. gxh5 {[%clk 0:01:01.5]} 31... gxh5
{[%clk 0:01:06.5]} 32. Rd1 {[%clk 0:00:55.3]} 32... Rg8 {[%clk 0:01:03.4]} 33.
Ra1 {[%clk 0:00:46.9]} 33... Rc5 {[%clk 0:00:59.1]} 34. Ra7 {[%clk 0:00:45.5]}
34... Rcg5 {[%clk 0:00:50.9]} 35. Rg3 {[%clk 0:00:43.3]} 35... Rxg3 {[%clk
0:00:51.1]} 36. fxg3 {[%clk 0:00:44.2]} 36... Rd8 {[%clk 0:00:48.5]} 37. Ra4
{[%clk 0:00:38]} 37... Rd1 {[%clk 0:00:42.5]} 38. Kg2 {[%clk 0:00:31.5]} 38...
Rc1 {[%clk 0:00:31.7]} 39. h4 {[%clk 0:00:28.3]} 39... Kg6 {[%clk 0:00:25.5]}
40. Ra5 {[%clk 0:00:27.5]} 40... f6 {[%clk 0:00:25.5]} 41. Kf2 {[%clk
0:00:16.3]} 41... Bg4 {[%clk 0:00:22.2]} 42. Ra6 {[%clk 0:00:13.8]} 42... Rc2+
{[%clk 0:00:22.6]} 43. Ke3 {[%clk 0:00:13.6]} 43... Re2+ {[%clk 0:00:23]} 44.
Kd4 {[%clk 0:00:12.9]} 44... Rg2 {[%clk 0:00:19.2]} 45. Kc5 {[%clk 0:00:12.9]}
45... Rxg3 {[%clk 0:00:18]} 46. Rxf6+ {[%clk 0:00:13.4]} 46... Kh7 {[%clk
0:00:18.7]} 47. Rf4 {[%clk 0:00:12.1]} 47... Rh3 {[%clk 0:00:18.3]} 48. Bf6
{[%clk 0:00:12.3]} 48... Kg6 {[%clk 0:00:17.4]} 49. b4 {[%clk 0:00:11.2]} 49...
Bf5 {[%clk 0:00:17.9]} 50. Bd4 {[%clk 0:00:10.6]} 50... Bg4 {[%clk 0:00:17.4]}
51. Bf2 {[%clk 0:00:07]} 51... Rf3 {[%clk 0:00:15.5]} 52. Rxf3 {[%clk
0:00:03.8]} 52... Bxf3 {[%clk 0:00:16.4]} 53. b5 {[%clk 0:00:03.3]} 53... Kf5
{[%clk 0:00:15.9]} 54. Kd6 {[%clk 0:00:03.7]} 54... Kf6 {[%clk 0:00:06.6]} 55.
b6 {[%clk 0:00:04.6]} 55... Kf7 {[%clk 0:00:07]} 56. Kc7 {[%clk 0:00:05.2]}
56... Ke6 {[%clk 0:00:06.3]} 57. b7 {[%clk 0:00:06.1]} 57... Bxb7 {[%clk
0:00:05.9]} 58. Kxb7 {[%clk 0:00:07]} 1-0

[Event "Late-Titled-Tuesday-Blitz-September-19-2023"]
[Site "Chess.com"]
[Date "2023.09.19"]
[Round "5"]
[White "MathiasWomacka"]
[Black "Taran2004"]
[Result "0-1"]
[WhiteElo "2548"]
[BlackElo "2442"]
[TimeControl "180+1"]
[EndTime "14:55:22 PDT"]
[Termination "Taran2004 won by checkmate"]

1. e4 {[%clk 0:03:00.9]} 1... c6 {[%clk 0:02:59.2]} 2. d4 {[%clk 0:02:59.9]}
2... d5 {[%clk 0:02:59.8]} 3. Nd2 {[%clk 0:02:59.8]} 3... dxe4 {[%clk
0:03:00.1]} 4. Nxe4 {[%clk 0:03:00.7]} 4... Nf6 {[%clk 0:03:00.5]} 5. Nxf6+
{[%clk 0:02:57.5]} 5... exf6 {[%clk 0:03:01.4]} 6. Bc4 {[%clk 0:02:56.9]} 6...
Bf5 {[%clk 0:02:58.7]} 7. Bf4 {[%clk 0:02:47.5]} 7... Nd7 {[%clk 0:02:53.6]} 8.
Qe2+ {[%clk 0:02:37.1]} 8... Be7 {[%clk 0:02:51.1]} 9. Bd6 {[%clk 0:02:31.5]}
9... Nb6 {[%clk 0:02:50.4]} 10. Bxe7 {[%clk 0:02:30.4]} 10... Qxe7 {[%clk
0:02:50.6]} 11. Qxe7+ {[%clk 0:02:23.4]} 11... Kxe7 {[%clk 0:02:50.4]} 12. Bb3
{[%clk 0:02:24]} 12... Rhe8 {[%clk 0:02:44.5]} 13. O-O-O {[%clk 0:02:20.5]}
13... a5 {[%clk 0:02:42.4]} 14. a4 {[%clk 0:02:19.3]} 14... Rad8 {[%clk
0:02:41.9]} 15. c3 {[%clk 0:02:10.4]} 15... Kf8 {[%clk 0:02:32.6]} 16. h4 {[%clk
0:01:57.3]} 16... Be4 {[%clk 0:02:32.3]} 17. f3 {[%clk 0:01:55]} 17... Bd5
{[%clk 0:02:32.4]} 18. Bc2 {[%clk 0:01:52.4]} 18... h6 {[%clk 0:02:32.5]} 19.
Nh3 {[%clk 0:01:50.1]} 19... Nc4 {[%clk 0:02:15.1]} 20. Rde1 {[%clk 0:01:44.9]}
20... Ne3 {[%clk 0:02:11.5]} 21. Nf4 {[%clk 0:01:41.2]} 21... g5 {[%clk
0:01:22.8]} 22. hxg5 {[%clk 0:01:37.1]} 22... fxg5 {[%clk 0:01:23.5]} 23. Nxd5
{[%clk 0:01:33.2]} 23... Nxd5 {[%clk 0:01:12.6]} 24. Rxe8+ {[%clk 0:01:30.2]}
24... Rxe8 {[%clk 0:01:13.5]} 25. Rxh6 {[%clk 0:01:29.4]} 25... Re2 {[%clk
0:01:13.1]} 26. g4 {[%clk 0:01:19]} 26... Kg7 {[%clk 0:00:58.8]} 27. Rd6 {[%clk
0:01:14.9]} 27... Ne3 {[%clk 0:00:57.3]} 28. Bd3 {[%clk 0:01:03.7]} 28... Rf2
{[%clk 0:00:57.3]} 29. Rd7 {[%clk 0:01:01.8]} 29... Rxf3 {[%clk 0:00:56]} 30.
Rxb7 {[%clk 0:01:01.6]} 30... Nxg4 {[%clk 0:00:47.5]} 31. Be2 {[%clk 0:00:53.9]}
31... Rf4 {[%clk 0:00:47.1]} 32. Kd2 {[%clk 0:00:32]} 32... Nf6 {[%clk
0:00:42.4]} 33. b4 {[%clk 0:00:29.3]} 33... axb4 {[%clk 0:00:21.2]} 34. Rxb4
{[%clk 0:00:30.2]} 34... Rf5 {[%clk 0:00:20.4]} 35. Rb6 {[%clk 0:00:24.1]} 35...
Ra5 {[%clk 0:00:18.4]} 36. Ra6 {[%clk 0:00:24.1]} 36... Rf5 {[%clk 0:00:16]} 37.
Rxc6 {[%clk 0:00:23.4]} 37... g4 {[%clk 0:00:16.3]} 38. Ke3 {[%clk 0:00:18.5]}
38... g3 {[%clk 0:00:10.3]} 39. Bf3 {[%clk 0:00:18.4]} 39... Nd5+ {[%clk
0:00:07.6]} 40. Bxd5 {[%clk 0:00:17.1]} 40... Rxd5 {[%clk 0:00:06.9]} 41. Kf3
{[%clk 0:00:18]} 41... Ra5 {[%clk 0:00:07]} 42. Kxg3 {[%clk 0:00:16.7]} 42...
Rxa4 {[%clk 0:00:07.3]} 43. d5 {[%clk 0:00:16.5]} 43... Kf8 {[%clk 0:00:06.4]}
44. Kf3 {[%clk 0:00:15.8]} 44... Ke7 {[%clk 0:00:05.8]} 45. c4 {[%clk 0:00:16]}
45... Ra3+ {[%clk 0:00:03.2]} 46. Ke4 {[%clk 0:00:16.2]} 46... Ra1 {[%clk
0:00:03.9]} 47. Kd4 {[%clk 0:00:15.6]} 47... Rd1+ {[%clk 0:00:03.9]} 48. Kc5
{[%clk 0:00:15.7]} 48... f5 {[%clk 0:00:04.3]} 49. Rc7+ {[%clk 0:00:15.4]} 49...
Ke8 {[%clk 0:00:04.2]} 50. Kd6 {[%clk 0:00:14.4]} 50... f4 {[%clk 0:00:04.7]}
51. c5 {[%clk 0:00:14.3]} 51... f3 {[%clk 0:00:05.1]} 52. Rc8+ {[%clk
0:00:13.1]} 52... Kf7 {[%clk 0:00:05.1]} 53. Rc7+ {[%clk 0:00:13.7]} 53... Ke8
{[%clk 0:00:04.8]} 54. Rd7 {[%clk 0:00:13.7]} 54... f2 {[%clk 0:00:04.3]} 55.
Re7+ {[%clk 0:00:14.3]} 55... Kf8 {[%clk 0:00:03.8]} 56. c6 {[%clk 0:00:13.5]}
56... f1=Q {[%clk 0:00:04.1]} 57. c7 {[%clk 0:00:14.4]} 57... Qf6+ {[%clk
0:00:04.3]} 58. Re6 {[%clk 0:00:14]} 58... Qf4+ {[%clk 0:00:03.9]} 59. Kd7
{[%clk 0:00:13.9]} 59... Rc1 {[%clk 0:00:03.8]} 60. d6 {[%clk 0:00:13.6]} 60...
Qf5 {[%clk 0:00:04.2]} 61. c8=Q+ {[%clk 0:00:07.5]} 61... Rxc8 {[%clk
0:00:04.2]} 62. Kxc8 {[%clk 0:00:07.7]} 62... Qxe6+ {[%clk 0:00:04.7]} 63. d7
{[%clk 0:00:08.6]} 63... Ke7 {[%clk 0:00:05]} 64. Kb7 {[%clk 0:00:08.5]} 64...
Qxd7+ {[%clk 0:00:05.9]} 65. Kb6 {[%clk 0:00:08.7]} 65... Kd6 {[%clk 0:00:06.8]}
66. Ka5 {[%clk 0:00:08.2]} 66... Qc7+ {[%clk 0:00:07.7]} 67. Ka4 {[%clk
0:00:08.9]} 67... Qc6+ {[%clk 0:00:08.1]} 68. Kb3 {[%clk 0:00:09.8]} 68... Qc5
{[%clk 0:00:08.5]} 69. Kb2 {[%clk 0:00:10.6]} 69... Qc4 {[%clk 0:00:09]} 70. Ka3
{[%clk 0:00:10.9]} 70... Qb5 {[%clk 0:00:09.4]} 71. Ka2 {[%clk 0:00:10.9]} 71...
Qb4 {[%clk 0:00:10.3]} 72. Ka1 {[%clk 0:00:11.7]} 72... Kd5 {[%clk 0:00:11.2]}
73. Ka2 {[%clk 0:00:12.5]} 73... Kd4 {[%clk 0:00:12.1]} 74. Ka1 {[%clk
0:00:13.2]} 74... Kc3 {[%clk 0:00:13]} 75. Ka2 {[%clk 0:00:14]} 75... Qb2#
{[%clk 0:00:13.9]} 0-1

[Event "Late-Titled-Tuesday-Blitz-September-19-2023"]
[Site "Chess.com"]
[Date "2023.09.19"]
[Round "5"]
[White "FrancescoSorcinelli"]
[Black "schachlana"]
[Result "0-1"]
[WhiteElo "2116"]
[BlackElo "2344"]
[TimeControl "180+1"]
[EndTime "14:55:24 PDT"]
[Termination "schachlana won by resignation"]

1. Nf3 {[%clk 0:03:00.9]} 1... Nf6 {[%clk 0:02:58.5]} 2. g3 {[%clk 0:03:01.1]}
2... g6 {[%clk 0:02:59]} 3. Bg2 {[%clk 0:03:01.5]} 3... d6 {[%clk 0:02:59.8]} 4.
O-O {[%clk 0:03:01.9]} 4... c5 {[%clk 0:02:59.6]} 5. d4 {[%clk 0:03:00.2]} 5...
cxd4 {[%clk 0:03:00]} 6. Qxd4 {[%clk 0:02:58.7]} 6... Bg7 {[%clk 0:02:59.8]} 7.
c4 {[%clk 0:02:57.1]} 7... O-O {[%clk 0:02:57.9]} 8. Nc3 {[%clk 0:02:57.1]} 8...
Nc6 {[%clk 0:02:57.4]} 9. Qh4 {[%clk 0:02:57.2]} 9... Be6 {[%clk 0:02:54.5]} 10.
b3 {[%clk 0:02:40.6]} 10... Rc8 {[%clk 0:02:36.8]} 11. Bb2 {[%clk 0:02:36.5]}
11... Bf5 {[%clk 0:02:32.8]} 12. Rad1 {[%clk 0:02:34.2]} 12... a6 {[%clk
0:02:31.6]} 13. Nd5 {[%clk 0:02:18.2]} 13... Nxd5 {[%clk 0:02:24.2]} 14. Bxg7
{[%clk 0:02:19.1]} 14... Kxg7 {[%clk 0:02:21.1]} 15. cxd5 {[%clk 0:02:01.4]}
15... Nb4 {[%clk 0:02:12.1]} 16. e4 {[%clk 0:01:58.6]} 16... Bd7 {[%clk
0:02:08.9]} 17. a3 {[%clk 0:01:53]} 17... Nc2 {[%clk 0:02:08.5]} 18. e5 {[%clk
0:01:28.7]} 18... Nxa3 {[%clk 0:01:50.5]} 19. e6 {[%clk 0:01:21.2]} 19... fxe6
{[%clk 0:01:44.5]} 20. dxe6 {[%clk 0:01:21.1]} 20... Bb5 {[%clk 0:01:42.1]} 21.
Rfe1 {[%clk 0:01:15.4]} 21... h6 {[%clk 0:01:34.3]} 22. Nd4 {[%clk 0:00:51.6]}
22... Be8 {[%clk 0:01:27.7]} 23. Bxb7 {[%clk 0:00:48.6]} 23... Rb8 {[%clk
0:01:27.5]} 24. Bxa6 {[%clk 0:00:44.4]} 24... g5 {[%clk 0:01:25.2]} 25. Qe4
{[%clk 0:00:39.1]} 25... Bg6 {[%clk 0:01:22.1]} 26. Qe3 {[%clk 0:00:37.1]} 26...
Qb6 {[%clk 0:01:13.9]} 27. Bd3 {[%clk 0:00:35]} 27... Bh5 {[%clk 0:00:59.6]} 28.
Qe4 {[%clk 0:00:30.4]} 28... Rh8 {[%clk 0:00:50.4]} 29. Nf5+ {[%clk 0:00:28]}
29... Kf8 {[%clk 0:00:49.6]} 30. Rc1 {[%clk 0:00:24]} 30... Bg6 {[%clk
0:00:42.2]} 31. Qe2 {[%clk 0:00:20.3]} 31... Qa5 {[%clk 0:00:26.9]} 32. Qb2
{[%clk 0:00:18.7]} 32... Rg8 {[%clk 0:00:23.8]} 33. Ra1 {[%clk 0:00:14.8]} 33...
Bxf5 {[%clk 0:00:15.3]} 34. Bxf5 {[%clk 0:00:11.6]} 34... Qxf5 {[%clk
0:00:16.2]} 35. Rxa3 {[%clk 0:00:09.6]} 35... Rg6 {[%clk 0:00:15.3]} 36. Ra7
{[%clk 0:00:09]} 36... Kg8 {[%clk 0:00:12.4]} 37. b4 {[%clk 0:00:08.8]} 37...
Rf8 {[%clk 0:00:12.8]} 38. b5 {[%clk 0:00:07.5]} 38... Rxe6 {[%clk 0:00:13]} 39.
Rxe6 {[%clk 0:00:06.9]} 39... Qxe6 {[%clk 0:00:13.9]} 40. b6 {[%clk 0:00:07.5]}
40... Qe1+ {[%clk 0:00:13.4]} 41. Kg2 {[%clk 0:00:07.9]} 41... Qe4+ {[%clk
0:00:14.2]} 42. Kg1 {[%clk 0:00:07.4]} 42... Rc8 {[%clk 0:00:14.6]} 43. b7
{[%clk 0:00:06]} 43... Qe1+ {[%clk 0:00:12.9]} 44. Kg2 {[%clk 0:00:06.5]} 44...
Qe4+ {[%clk 0:00:13.6]} 45. Kf1 {[%clk 0:00:05.1]} 45... Qh1+ {[%clk 0:00:12]}
46. Ke2 {[%clk 0:00:05.6]} 46... Qe4+ {[%clk 0:00:12.1]} 47. Kf1 {[%clk
0:00:06]} 47... Qc4+ {[%clk 0:00:12.2]} 48. Kg2 {[%clk 0:00:04.5]} 48... Rb8
{[%clk 0:00:12.8]} 49. Ra8 {[%clk 0:00:04.1]} 49... Qe4+ {[%clk 0:00:13.5]} 50.
Kg1 {[%clk 0:00:03.9]} 50... Rxa8 {[%clk 0:00:14.2]} 51. bxa8=Q+ {[%clk
0:00:03.7]} 51... Qxa8 {[%clk 0:00:15.1]} 52. Qc2 {[%clk 0:00:03.5]} 52... Qf8
{[%clk 0:00:15]} 53. Qe4 {[%clk 0:00:02.9]} 53... Qg7 {[%clk 0:00:15.8]} 54.
Qe6+ {[%clk 0:00:03.1]} 54... Qf7 {[%clk 0:00:16.1]} 55. Qxh6 {[%clk 0:00:03.5]}
55... Qf6 {[%clk 0:00:15.4]} 56. Qh5 {[%clk 0:00:03.7]} 56... Kg7 {[%clk
0:00:15.6]} 57. Qe8 {[%clk 0:00:04]} 57... Qa1+ {[%clk 0:00:15.7]} 58. Kg2
{[%clk 0:00:04.6]} 58... Qe5 {[%clk 0:00:15.3]} 59. Qd7 {[%clk 0:00:04.3]} 59...
Kf7 {[%clk 0:00:14.8]} 60. h4 {[%clk 0:00:04.4]} 60... gxh4 {[%clk 0:00:14.6]}
61. gxh4 {[%clk 0:00:05.3]} 61... Qe4+ {[%clk 0:00:14.8]} 62. Kh3 {[%clk
0:00:05.1]} 62... Qf3+ {[%clk 0:00:15.2]} 63. Kh2 {[%clk 0:00:04.9]} 63... Qxf2+
{[%clk 0:00:15.9]} 64. Kh3 {[%clk 0:00:05.6]} 64... Qf3+ {[%clk 0:00:16]} 65.
Kh2 {[%clk 0:00:06.2]} 65... Qf6 {[%clk 0:00:16.5]} 66. Kh3 {[%clk 0:00:05.7]}
66... Qe6+ {[%clk 0:00:16.2]} 67. Qxe6+ {[%clk 0:00:05.6]} 67... Kxe6 {[%clk
0:00:16.6]} 68. Kg4 {[%clk 0:00:06.1]} 68... Kf6 {[%clk 0:00:16.8]} 69. Kf4
{[%clk 0:00:06.5]} 69... d5 {[%clk 0:00:15.5]} 70. Ke3 {[%clk 0:00:06.7]} 70...
e5 {[%clk 0:00:15.8]} 71. h5 {[%clk 0:00:06.7]} 71... Kg5 {[%clk 0:00:16.2]} 72.
h6 {[%clk 0:00:07.6]} 72... Kxh6 {[%clk 0:00:16.4]} 0-1

[Event "Late-Titled-Tuesday-Blitz-September-19-2023"]
[Site "Chess.com"]
[Date "2023.09.19"]
[Round "5"]
[White "ritanovikova"]
[Black "tgpgoat"]
[Result "0-1"]
[WhiteElo "2148"]
[BlackElo "2509"]
[TimeControl "180+1"]
[EndTime "14:55:27 PDT"]
[Termination "tgpgoat won on time"]

1. d4 {[%clk 0:02:59.5]} 1... Nf6 {[%clk 0:02:59.5]} 2. Bf4 {[%clk 0:03:00.2]}
2... d5 {[%clk 0:02:58.7]} 3. c3 {[%clk 0:02:59.7]} 3... c5 {[%clk 0:02:58.3]}
4. e4 {[%clk 0:02:59.3]} 4... Nxe4 {[%clk 0:02:55.7]} 5. Bb5+ {[%clk 0:02:58.1]}
5... Bd7 {[%clk 0:02:54.2]} 6. Bxd7+ {[%clk 0:02:57.3]} 6... Qxd7 {[%clk
0:02:55.1]} 7. dxc5 {[%clk 0:02:56.3]} 7... Nxc5 {[%clk 0:02:56]} 8. Nf3 {[%clk
0:02:53.9]} 8... Nc6 {[%clk 0:02:55.2]} 9. O-O {[%clk 0:02:53.7]} 9... e6 {[%clk
0:02:55.3]} 10. b4 {[%clk 0:02:53.9]} 10... Ne4 {[%clk 0:02:53.8]} 11. b5 {[%clk
0:02:52.1]} 11... Nd8 {[%clk 0:02:53]} 12. a4 {[%clk 0:02:51.9]} 12... Bd6
{[%clk 0:02:52.7]} 13. Be3 {[%clk 0:02:45]} 13... O-O {[%clk 0:02:46.6]} 14. Qd3
{[%clk 0:02:45.3]} 14... Rc8 {[%clk 0:02:44.5]} 15. Rc1 {[%clk 0:02:42.2]} 15...
b6 {[%clk 0:02:40.4]} 16. Nbd2 {[%clk 0:02:41.4]} 16... Nxd2 {[%clk 0:02:39.5]}
17. Nxd2 {[%clk 0:02:35.4]} 17... Nb7 {[%clk 0:02:39.4]} 18. Qe2 {[%clk
0:02:20.6]} 18... e5 {[%clk 0:02:29.7]} 19. f4 {[%clk 0:02:04.8]} 19... exf4
{[%clk 0:02:17.5]} 20. Bd4 {[%clk 0:02:04.5]} 20... Nc5 {[%clk 0:02:17.5]} 21.
Qf3 {[%clk 0:01:52.4]} 21... Rfe8 {[%clk 0:02:16.2]} 22. Qxd5 {[%clk 0:01:38]}
22... Rcd8 {[%clk 0:02:02.9]} 23. Nc4 {[%clk 0:01:32.1]} 23... Nb3 {[%clk
0:01:52.3]} 24. Nxd6 {[%clk 0:01:31]} 24... Nxc1 {[%clk 0:01:50.9]} 25. Rxc1
{[%clk 0:01:18.5]} 25... Qxd6 {[%clk 0:01:45.6]} 26. Qg5 {[%clk 0:01:17.2]}
26... Qg6 {[%clk 0:01:14.2]} 27. Qxf4 {[%clk 0:01:16.4]} 27... Re2 {[%clk
0:01:11.9]} 28. Qf3 {[%clk 0:00:49.2]} 28... Rde8 {[%clk 0:01:10.5]} 29. Rf1
{[%clk 0:00:45.2]} 29... f6 {[%clk 0:01:10.1]} 30. Bf2 {[%clk 0:00:35.4]} 30...
Qe4 {[%clk 0:01:08.5]} 31. Qh5 {[%clk 0:00:33.4]} 31... Qxa4 {[%clk 0:00:58.9]}
32. Qd5+ {[%clk 0:00:33.2]} 32... Kh8 {[%clk 0:00:58.3]} 33. Bd4 {[%clk
0:00:31.6]} 33... Qc2 {[%clk 0:00:51]} 34. h4 {[%clk 0:00:29.1]} 34... Qe4
{[%clk 0:00:48.5]} 35. Qxe4 {[%clk 0:00:23.5]} 35... R2xe4 {[%clk 0:00:49.4]}
36. h5 {[%clk 0:00:23.6]} 36... Kg8 {[%clk 0:00:48.3]} 37. h6 {[%clk 0:00:23.3]}
37... R8e6 {[%clk 0:00:47.6]} 38. hxg7 {[%clk 0:00:23.2]} 38... Kxg7 {[%clk
0:00:48.5]} 39. Rf3 {[%clk 0:00:21.5]} 39... Kf7 {[%clk 0:00:47.4]} 40. Rh3
{[%clk 0:00:20.8]} 40... Kg6 {[%clk 0:00:47.4]} 41. Rg3+ {[%clk 0:00:20.6]}
41... Kh5 {[%clk 0:00:46.1]} 42. Rh3+ {[%clk 0:00:20.6]} 42... Rh4 {[%clk
0:00:44.3]} 43. Rf3 {[%clk 0:00:19.1]} 43... Kg6 {[%clk 0:00:43.8]} 44. Rg3+
{[%clk 0:00:18.7]} 44... Kf5 {[%clk 0:00:43.8]} 45. Rg7 {[%clk 0:00:18.2]} 45...
Rg4 {[%clk 0:00:42.1]} 46. Rxa7 {[%clk 0:00:14.3]} 46... Re2 {[%clk 0:00:42.5]}
47. Bf2 {[%clk 0:00:12.7]} 47... Rb2 {[%clk 0:00:32.2]} 48. Rxh7 {[%clk
0:00:12]} 48... Rxb5 {[%clk 0:00:29.3]} 49. Rh5+ {[%clk 0:00:11.6]} 49... Rg5
{[%clk 0:00:29.9]} 50. Rh7 {[%clk 0:00:10.3]} 50... Rb2 {[%clk 0:00:27.1]} 51.
Rb7 {[%clk 0:00:09.1]} 51... b5 {[%clk 0:00:26.8]} 52. Rb6 {[%clk 0:00:09]}
52... Rg4 {[%clk 0:00:24.8]} 53. Kf1 {[%clk 0:00:06.9]} 53... Rf4 {[%clk
0:00:24.5]} 54. Rxb5+ {[%clk 0:00:05.1]} 54... Rxb5 {[%clk 0:00:22]} 55. g3
{[%clk 0:00:03.8]} 55... Rf3 {[%clk 0:00:21.3]} 56. Kg2 {[%clk 0:00:04.2]} 56...
Rxc3 {[%clk 0:00:21.8]} 57. g4+ {[%clk 0:00:04.1]} 57... Kxg4 {[%clk 0:00:21.7]}
58. Be1 {[%clk 0:00:05]} 58... Rb2+ {[%clk 0:00:21.7]} 59. Bf2 {[%clk
0:00:05.6]} 59... Rcc2 {[%clk 0:00:20.2]} 60. Kh1 {[%clk 0:00:05.7]} 60... Rxf2
{[%clk 0:00:19.5]} 61. Kg1 {[%clk 0:00:05.9]} 61... Rfc2 {[%clk 0:00:20.4]} 0-1

[Event "Late-Titled-Tuesday-Blitz-September-19-2023"]
[Site "Chess.com"]
[Date "2023.09.19"]
[Round "5"]
[White "CraiggoryC"]
[Black "Sacbutt"]
[Result "1-0"]
[WhiteElo "2247"]
[BlackElo "2356"]
[TimeControl "180+1"]
[EndTime "14:55:31 PDT"]
[Termination "CraiggoryC won on time"]

1. e4 {[%clk 0:02:58.6]} 1... e5 {[%clk 0:02:59.8]} 2. Nf3 {[%clk 0:02:58.3]}
2... Nc6 {[%clk 0:03:00.5]} 3. Bb5 {[%clk 0:02:58.3]} 3... a6 {[%clk 0:02:59.9]}
4. Ba4 {[%clk 0:02:58.6]} 4... Nf6 {[%clk 0:03:00.3]} 5. O-O {[%clk 0:02:59.1]}
5... Be7 {[%clk 0:03:00.7]} 6. d3 {[%clk 0:02:57.6]} 6... b5 {[%clk 0:03:00.3]}
7. Bb3 {[%clk 0:02:57.8]} 7... d6 {[%clk 0:03:00.9]} 8. Nc3 {[%clk 0:02:58.1]}
8... O-O {[%clk 0:02:58]} 9. a4 {[%clk 0:02:57.9]} 9... Rb8 {[%clk 0:02:52.8]}
10. axb5 {[%clk 0:02:55.6]} 10... axb5 {[%clk 0:02:53.7]} 11. Nd5 {[%clk
0:02:56.1]} 11... Nxd5 {[%clk 0:02:48.5]} 12. Bxd5 {[%clk 0:02:55.3]} 12... Nb4
{[%clk 0:02:31.1]} 13. Bb3 {[%clk 0:02:53.6]} 13... c5 {[%clk 0:02:27.1]} 14. c3
{[%clk 0:02:53.9]} 14... Nc6 {[%clk 0:02:26.5]} 15. Bd5 {[%clk 0:02:53]} 15...
Qc7 {[%clk 0:02:25.9]} 16. Bg5 {[%clk 0:02:34.6]} 16... Re8 {[%clk 0:02:06.5]}
17. Qb3 {[%clk 0:02:24.7]} 17... Bf8 {[%clk 0:00:50.6]} 18. Be3 {[%clk
0:02:18.4]} 18... h6 {[%clk 0:00:48.9]} 19. Nd2 {[%clk 0:02:15]} 19... Be6
{[%clk 0:00:48.9]} 20. f4 {[%clk 0:02:12.5]} 20... Bxd5 {[%clk 0:00:47.3]} 21.
Qxd5 {[%clk 0:02:05.4]} 21... Ne7 {[%clk 0:00:39]} 22. Qb3 {[%clk 0:02:00.7]}
22... exf4 {[%clk 0:00:34.2]} 23. Rxf4 {[%clk 0:02:00.9]} 23... Ng6 {[%clk
0:00:34.6]} 24. Rf5 {[%clk 0:01:44.6]} 24... Ne5 {[%clk 0:00:34]} 25. d4 {[%clk
0:01:24.5]} 25... cxd4 {[%clk 0:00:32.3]} 26. cxd4 {[%clk 0:01:22.3]} 26... Nc4
{[%clk 0:00:32]} 27. Rxb5 {[%clk 0:00:43.6]} 27... Rxb5 {[%clk 0:00:27.7]} 28.
Qxb5 {[%clk 0:00:42.8]} 28... Rc8 {[%clk 0:00:14.3]} 29. Rc1 {[%clk 0:00:34.6]}
29... d5 {[%clk 0:00:10.2]} 30. exd5 {[%clk 0:00:24.3]} 30... Qe7 {[%clk
0:00:09.9]} 31. Nxc4 {[%clk 0:00:15.4]} 31... Rxc4 {[%clk 0:00:09.6]} 32. Qxc4
{[%clk 0:00:14.2]} 32... Qxe3+ {[%clk 0:00:10.5]} 33. Kh1 {[%clk 0:00:14.6]}
33... Bd6 {[%clk 0:00:10.5]} 34. Qc8+ {[%clk 0:00:12.9]} 34... Kh7 {[%clk
0:00:10.3]} 35. Qf5+ {[%clk 0:00:13]} 35... Kg8 {[%clk 0:00:08.5]} 36. Rc8+
{[%clk 0:00:11.3]} 36... Bf8 {[%clk 0:00:08.4]} 37. h3 {[%clk 0:00:11.8]} 37...
Qe1+ {[%clk 0:00:07.7]} 38. Kh2 {[%clk 0:00:11.8]} 38... Qe3 {[%clk 0:00:07.9]}
39. Rb8 {[%clk 0:00:10.5]} 39... g6 {[%clk 0:00:08.1]} 40. Qc8 {[%clk
0:00:10.1]} 40... Qf4+ {[%clk 0:00:08.3]} 41. Kg1 {[%clk 0:00:10.6]} 41... Qe3+
{[%clk 0:00:09]} 42. Kf1 {[%clk 0:00:10.7]} 42... Qf4+ {[%clk 0:00:09.1]} 43.
Ke2 {[%clk 0:00:10.9]} 43... Qe4+ {[%clk 0:00:09.8]} 44. Kf1 {[%clk 0:00:10.4]}
44... Qf4+ {[%clk 0:00:10]} 45. Kg1 {[%clk 0:00:10.6]} 45... Qe3+ {[%clk
0:00:10.4]} 46. Kh1 {[%clk 0:00:10.3]} 46... Qe1+ {[%clk 0:00:10]} 47. Kh2
{[%clk 0:00:10.7]} 47... Qe7 {[%clk 0:00:09.9]} 48. d6 {[%clk 0:00:09.5]} 48...
Qxd6+ {[%clk 0:00:10.2]} 49. g3 {[%clk 0:00:09.4]} 49... Kg7 {[%clk 0:00:09.6]}
50. Qxf8+ {[%clk 0:00:09]} 50... Qxf8 {[%clk 0:00:09.5]} 51. Rxf8 {[%clk
0:00:09.7]} 51... Kxf8 {[%clk 0:00:10.4]} 52. Kg2 {[%clk 0:00:10.4]} 52... Ke7
{[%clk 0:00:11.3]} 53. Kf3 {[%clk 0:00:11]} 53... Kd6 {[%clk 0:00:12]} 54. Ke4
{[%clk 0:00:11.4]} 54... f5+ {[%clk 0:00:12.2]} 55. Kd3 {[%clk 0:00:11.3]} 55...
Kd5 {[%clk 0:00:13]} 56. b4 {[%clk 0:00:11.3]} 56... g5 {[%clk 0:00:13.8]} 57.
Ke3 {[%clk 0:00:11]} 57... h5 {[%clk 0:00:13.6]} 58. h4 {[%clk 0:00:10.7]} 58...
f4+ {[%clk 0:00:12.5]} 59. gxf4 {[%clk 0:00:11.1]} 59... gxh4 {[%clk 0:00:12.4]}
60. Kf3 {[%clk 0:00:09.3]} 60... Kxd4 {[%clk 0:00:11.7]} 61. f5 {[%clk
0:00:09.5]} 61... Ke5 {[%clk 0:00:12]} 62. b5 {[%clk 0:00:09.7]} 62... Kxf5
{[%clk 0:00:12.3]} 63. b6 {[%clk 0:00:10.3]} 63... h3 {[%clk 0:00:11.8]} 64. b7
{[%clk 0:00:09.9]} 1-0